fUST/lending_fUST_20250716
["ID","MTS","AMOUNT","RATE_DAILY","PERIOD"]
[372544041,1752678645616,-460.0,0.00019726,2]
[372544042,1752678645626,-460.0,0.00019726,2]
[372544043,1752678645635,-247.62997666,0.00019726,2]
[372544044,1752678645644,-462.53617757,0.00019726,2]
[372544045,1752678645654,-460.0,0.00019726,2]
[372544046,1752678645663,-460.0,0.00019726,2]
[372544047,1752678645673,-460.0,0.00019726,2]
[372544048,1752678645683,-460.0,0.00019726,2]
[372544049,1752678645692,-376.74488546,0.00019726,2]
[372544050,1752678645702,-460.0,0.00019726,2]
[372544051,1752678645712,-460.0,0.00019726,2]
[372544052,1752678645724,-471.71,0.00019726,2]
[372544053,1752678645735,-508.85,0.00019726,2]
[372544054,1752678645746,-565.48,0.00019726,2]
[372544055,1752678645757,-460.0,0.00019726,2]
[372544056,1752678645768,-302.46241226,0.00019726,2]
[372544057,1752678645779,-460.0,0.00019726,2]
[372544058,1752678645789,-498.46,0.00019726,2]
[372544059,1752678645800,-460.0,0.00019726,2]
[372544060,1752678645810,-575.56,0.00019726,2]
[372544061,1752678645820,-307.35,0.00019726,2]
[372544062,1752678645830,-460.0,0.00019726,2]
[372544063,1752678645839,-460.0,0.00019726,2]
[372544064,1752678645849,-736.25,0.00019726,2]
[372544065,1752678645859,-460.0,0.00019726,2]
[372544066,1752678645869,-460.0,0.00019726,2]
[372544068,1752678645879,-775.35,0.00019726,2]
[372544070,1752678645888,-460.0,0.00019726,2]
[372544071,1752678645898,-460.0,0.00019726,2]
[372544072,1752678645908,-460.0,0.00019726,2]
[372544073,1752678645918,-460.0,0.00019726,2]
[372544075,1752678645928,-460.0,0.00019726,2]
[372544076,1752678645938,-460.0,0.00019726,2]
[372544077,1752678645947,-460.0,0.00019726,2]
[372544078,1752678645958,-609.22,0.00019726,2]
[372544079,1752678645968,-460.0,0.00019726,2]
[372544080,1752678645978,-2705.43,0.00019726,2]
[372544082,1752678645988,-460.0,0.00019726,2]
[372544084,1752678645998,-460.0,0.00019726,2]
[372544085,1752678646007,-460.0,0.00019726,2]
[372544086,1752678646017,-1116.34,0.00019726,2]
[372544087,1752678646026,-460.0,0.00019726,2]
[372544088,1752678646036,-460.0,0.00019726,2]
[372544089,1752678646045,-460.0,0.00019726,2]
[372544090,1752678646055,-460.0,0.00019726,2]
[372544091,1752678646065,-718.95,0.00019726,2]
[372544092,1752678646074,-460.0,0.00019726,2]
[372544093,1752678646084,-460.0,0.00019726,2]
[372544094,1752678646094,-460.0,0.00019726,2]
[372544095,1752678646104,-5356.15,0.00019726,2]
[372544096,1752678646114,-460.0,0.00019726,2]
[372544097,1752678646124,-2292.35,0.00019726,2]
[372544098,1752678646134,-460.0,0.00019726,2]
[372544099,1752678646143,-1737.25,0.00019726,2]
[372544100,1752678646153,-460.0,0.00019726,2]
[372544102,1752678646162,-460.0,0.00019726,2]
[372544103,1752678646172,-460.0,0.00019726,2]
[372544104,1752678646182,-641.9,0.00019726,2]
[372544105,1752678646191,-460.0,0.00019726,2]
[372544106,1752678646201,-460.0,0.00019726,2]
[372544107,1752678646211,-1414.64,0.00019726,2]
[372544108,1752678646222,-460.0,0.00019726,2]
[372544109,1752678646232,-460.0,0.00019726,2]
[372544110,1752678646242,-460.0,0.00019726,2]
[372544111,1752678646251,-846.66,0.00019726,2]
[372544112,1752678646261,-3615.07,0.00019726,2]
[372544113,1752678646270,-460.0,0.00019726,2]
[372544114,1752678646280,-478.86,0.00019726,2]
[372544115,1752678646290,-506.39,0.00019726,2]
[372544116,1752678646300,-460.0,0.00019726,2]
[372544117,1752678646312,-460.0,0.00019726,2]
[372544118,1752678646322,-912.0,0.00019726,2]
[372544119,1752678646332,-381.90173859,0.00019726,2]
[372544120,1752678646341,-6795.07,0.00019726,2]
[372544121,1752678646352,-1065.94,0.00019726,2]
[372544122,1752678646362,-5003.29,0.00019726,2]
[372544123,1752678646371,-460.0,0.00019726,2]
[372544124,1752678646383,-524.52,0.00019726,2]
[372544125,1752678646392,-460.0,0.00019726,2]
[372544126,1752678646402,-460.0,0.00019726,2]
[372544127,1752678646412,-460.0,0.00019726,2]
[372544128,1752678646422,-460.0,0.00019726,2]
[372544130,1752678646431,-460.0,0.00019726,2]
[372544131,1752678646442,-460.0,0.00019726,2]
[372544133,1752678646451,-460.0,0.00019726,2]
[372544135,1752678646461,-460.0,0.00019726,2]
[372544136,1752678646472,-460.0,0.00019726,2]
[372544137,1752678646482,-460.0,0.00019726,2]
[372544138,1752678646492,-460.0,0.00019726,2]
[372544139,1752678646502,-460.0,0.00019726,2]
[372544140,1752678646512,-460.0,0.00019726,2]
[372544141,1752678646522,-460.0,0.00019726,2]
[372544142,1752678646532,-460.0,0.00019726,2]
[372544143,1752678646542,-677.7,0.00019726,2]
[372544145,1752678646552,-2241.66,0.00019726,2]
[372544146,1752678646562,-460.0,0.00019726,2]
[372544148,1752678646571,-3256.22,0.00019726,2]
[372544150,1752678646581,-460.0,0.00019726,2]
[372544152,1752678646591,-460.0,0.00019726,2]
[372544153,1752678646600,-2858.44,0.00019726,2]
[372544154,1752678646610,-2825.25,0.00019726,2]
[372544155,1752678646620,-460.0,0.00019726,2]
[372544156,1752678646630,-460.0,0.00019726,2]
[372544157,1752678646640,-198.64,0.00019726,2]
[372544158,1752678646649,-827.57,0.00019726,2]
[372544159,1752678646659,-1898.44,0.00019726,2]
[372544160,1752678646669,-460.0,0.00019726,2]
[372544161,1752678646679,-918.75,0.00019726,2]
[372544162,1752678646689,-968.18,0.00019726,2]
[372544163,1752678646698,-460.0,0.00019726,2]
[372544164,1752678646708,-587.96,0.00019726,2]
[372544165,1752678646718,-540.85,0.00019726,2]
[372544166,1752678646728,-460.0,0.00019726,2]
[372544167,1752678646737,-460.0,0.00019726,2]
[372544168,1752678646747,-460.0,0.00019726,2]
[372544169,1752678646756,-460.0,0.00019726,2]
[372544171,1752678646766,-520.43,0.00019726,2]
[372544173,1752678646775,-4413.79,0.00019726,2]
[372544175,1752678646785,-3845.19834953,0.000199,2]
[372544177,1752678646794,-214.40824756,0.0001993,2]
[372544178,1752678646804,-160.0,0.0001993,2]
[372544179,1752678646814,-160.0,0.0001993,2]
[372544180,1752678646823,-160.0,0.0001993,2]
[372544181,1752678646833,-215.5496034,0.0001993,2]
[372544182,1752678646842,-230.8109288,0.0001993,2]
[372544184,1752678646852,-160.0,0.0001993,2]
[372544185,1752678646862,-525.58295679,0.0001993,2]
[372544186,1752678646872,-160.0,0.0001993,2]
[372544187,1752678646882,-838.99048831,0.0001993,2]
[372544188,1752678646892,-500.0,0.00019973,2]
[372544189,1752678646901,-209.3396534,0.00019973,2]
[372544190,1752678646911,-500.0,0.00019973,2]
[372544191,1752678646921,-512.57935487,0.00019973,2]
[372544192,1752678646930,-500.0,0.00019973,2]
[372544193,1752678646939,-500.0,0.00019973,2]
[372544194,1752678646949,-500.0,0.00019973,2]
[372544195,1752678646959,-151.0,0.00019989,2]
[372544196,1752678646970,-242.837648,0.00019989,2]
[372544197,1752678646980,-151.0,0.00019989,2]
[372544198,1752678646990,-151.0,0.00019989,2]
[372544199,1752678647000,-151.0,0.0001999,2]
[372544200,1752678647010,-100000.0,0.0001999,2]
[372544201,1752678647019,-151.0,0.0002,2]
[372544202,1752678647029,-460.0,0.0002,2]
[372544203,1752678647043,-242.837648,0.0002,2]
[372544204,1752678647052,-464.03925104,0.0002,2]
[372544205,1752678647062,-151.0,0.0002,2]
[372544206,1752678647072,-151.0,0.0002,2]
[372544207,1752678647082,-460.0,0.0002,2]
[372544208,1752678647092,-460.0,0.0002,2]
[372544209,1752678647102,-468.76620667,0.0002,2]
[372544210,1752678647112,-460.0,0.0002,2]
[372544211,1752678647121,-548.33772874,0.0002,2]
[372544212,1752678647131,-460.0,0.0002,2]
[372544213,1752678647140,-404.69135795,0.0002,2]
[372544214,1752678647150,-460.0,0.0002,2]
[372544215,1752678647160,-349.85264268,0.0002,2]
[372544216,1752678647170,-460.0,0.0002,2]
[372544217,1752678647180,-471.71,0.0002,2]
[372544218,1752678647190,-508.85,0.0002,2]
[372544219,1752678647200,-565.48,0.0002,2]
[372544220,1752678647210,-498.46,0.0002,2]
[372544221,1752678647220,-460.0,0.0002,2]
[372544222,1752678647230,-575.56,0.0002,2]
[372544223,1752678647239,-460.0,0.0002,2]
[372544224,1752678647249,-460.0,0.0002,2]
[372544225,1752678647259,-736.25,0.0002,2]
[372544226,1752678647269,-460.0,0.0002,2]
[372544227,1752678647278,-775.35,0.0002,2]
[372544228,1752678647288,-460.0,0.0002,2]
[372544229,1752678647298,-460.0,0.0002,2]
[372544230,1752678647309,-460.0,0.0002,2]
[372544231,1752678647320,-460.0,0.0002,2]
[372544232,1752678647330,-460.0,0.0002,2]
[372544233,1752678647339,-460.0,0.0002,2]
[372544234,1752678647350,-460.0,0.0002,2]
[372544235,1752678647360,-2705.43,0.0002,2]
[372544236,1752678647370,-460.0,0.0002,2]
[372544237,1752678647380,-460.0,0.0002,2]
[372544238,1752678647392,-460.0,0.0002,2]
[372544239,1752678647402,-1116.34,0.0002,2]
[372544240,1752678647412,-460.0,0.0002,2]
[372544241,1752678647421,-460.0,0.0002,2]
[372544242,1752678647431,-460.0,0.0002,2]
[372544243,1752678647441,-460.0,0.0002,2]
[372544244,1752678647451,-718.95,0.0002,2]
[372544245,1752678647460,-460.0,0.0002,2]
[372544246,1752678647471,-460.0,0.0002,2]
[372544247,1752678647482,-460.0,0.0002,2]
[372544248,1752678647492,-5356.15,0.0002,2]
[372544249,1752678647502,-460.0,0.0002,2]
[372544250,1752678647512,-2292.35,0.0002,2]
[372544251,1752678647522,-1737.25,0.0002,2]
[372544252,1752678647532,-460.0,0.0002,2]
[372544253,1752678647542,-460.0,0.0002,2]
[372544254,1752678647552,-641.9,0.0002,2]
[372544255,1752678647562,-386.14255745,0.0002,2]
[372544256,1752678647572,-460.0,0.0002,2]
[372544257,1752678647582,-1414.64,0.0002,2]
[372544258,1752678647592,-160.58176164,0.0002,2]
[372544259,1752678647601,-460.0,0.0002,2]
[372544260,1752678647611,-846.66,0.0002,2]
[372544261,1752678647622,-3615.07,0.0002,2]
[372544262,1752678647631,-460.0,0.0002,2]
[372544263,1752678647641,-478.86,0.0002,2]
[372544264,1752678647651,-506.39,0.0002,2]
[372544265,1752678647661,-460.0,0.0002,2]
[372544266,1752678647671,-460.0,0.0002,2]
[372544267,1752678647681,-912.0,0.0002,2]
[372544268,1752678647691,-6795.07,0.0002,2]
[372544269,1752678647702,-1065.94,0.0002,2]
[372544270,1752678647712,-5003.29,0.0002,2]
[372544271,1752678647725,-524.52,0.0002,2]
[372544272,1752678647735,-460.0,0.0002,2]
[372544273,1752678647744,-460.0,0.0002,2]
[372544274,1752678647754,-460.0,0.0002,2]
[372544275,1752678647764,-460.0,0.0002,2]
[372544276,1752678647774,-460.0,0.0002,2]
[372544277,1752678647784,-460.0,0.0002,2]
[372544278,1752678647795,-460.0,0.0002,2]
[372544279,1752678647805,-460.0,0.0002,2]
[372544280,1752678647815,-460.0,0.0002,2]
[372544281,1752678647825,-279.68,0.0002,2]
[372544282,1752678647835,-460.0,0.0002,2]
[372544283,1752678647844,-460.0,0.0002,2]
[372544284,1752678647855,-677.7,0.0002,2]
[372544285,1752678647866,-2241.66,0.0002,2]
[372544286,1752678647876,-460.0,0.0002,2]
[372544287,1752678647887,-3256.22,0.0002,2]
[372544288,1752678647897,-460.0,0.0002,2]
[372544289,1752678647907,-477.94787217,0.0002,2]
[372544290,1752678647918,-2858.44,0.0002,2]
[372544291,1752678647927,-2825.25,0.0002,2]
[372544292,1752678647937,-460.0,0.0002,2]
[372544293,1752678647947,-460.0,0.0002,2]
[372544294,1752678647957,-827.57,0.0002,2]
[372544295,1752678647967,-1898.44,0.0002,2]
[372544296,1752678647978,-918.75,0.0002,2]
[372544297,1752678647988,-968.18,0.0002,2]
[372544298,1752678647998,-460.0,0.0002,2]
[372544299,1752678648008,-587.96,0.0002,2]
[372544300,1752678648018,-540.85,0.0002,2]
[372544301,1752678648028,-267.45327627,0.0002,2]
[372544302,1752678648037,-460.0,0.0002,2]
[372544303,1752678648047,-460.0,0.0002,2]
[372544304,1752678648057,-520.43,0.0002,2]
[372544305,1752678648067,-4413.79,0.0002,2]
[372544306,1752678648077,-500.0,0.00020041,2]
[372544307,1752678648087,-515.48335528,0.00020041,2]
[372544308,1752678648098,-151.0,0.00020066,2]
[372544309,1752678648108,-151.0,0.00020066,2]
[372544310,1752678648118,-3845.19834937,0.00020107,2]
[372544311,1752678648258,-397.39298171,0.00020174,2]
[372544312,1752678648268,-303.924045,0.00020187,2]
[372544313,1752678648278,-700.0,0.00020218,2]
[372544314,1752678648287,-151.0,0.00020273,2]
[372544315,1752678648297,-151.0,0.00020273,2]
[372544316,1752678648310,-242.837648,0.00020273,2]
[372544317,1752678648322,-151.0,0.00020273,2]
[372544318,1752678648333,-151.0,0.00020273,2]
[372544319,1752678648343,-460.0,0.00020273,2]
[372544320,1752678648352,-460.0,0.00020273,2]
[372544321,1752678648363,-460.0,0.00020273,2]
[372544322,1752678648373,-460.0,0.00020273,2]
[372544323,1752678648382,-460.0,0.00020273,2]
[372544324,1752678648392,-460.0,0.00020273,2]
[372544325,1752678648402,-471.71,0.00020273,2]
[372544326,1752678648413,-508.85,0.00020273,2]
[372544327,1752678648423,-565.48,0.00020273,2]
[372544328,1752678648433,-498.46,0.00020273,2]
[372544329,1752678648443,-460.0,0.00020273,2]
[372544330,1752678648453,-575.56,0.00020273,2]
[372544331,1752678648463,-460.0,0.00020273,2]
[372544332,1752678648474,-736.25,0.00020273,2]
[372544333,1752678648484,-460.0,0.00020273,2]
[372544334,1752678648494,-775.35,0.00020273,2]
[372544335,1752678648504,-460.0,0.00020273,2]
[372544336,1752678648513,-460.0,0.00020273,2]
[372544337,1752678648523,-460.0,0.00020273,2]
[372544338,1752678648533,-460.0,0.00020273,2]
[372544339,1752678648542,-460.0,0.00020273,2]
[372544340,1752678648552,-460.0,0.00020273,2]
[372544341,1752678648563,-460.0,0.00020273,2]
[372544342,1752678648572,-2705.43,0.00020273,2]
[372544343,1752678648582,-460.0,0.00020273,2]
[372544344,1752678648592,-460.0,0.00020273,2]
[372544345,1752678648602,-460.0,0.00020273,2]
[372544346,1752678648612,-1116.34,0.00020273,2]
[372544347,1752678648621,-460.0,0.00020273,2]
[372544348,1752678648631,-460.0,0.00020273,2]
[372544349,1752678648641,-460.0,0.00020273,2]
[372544350,1752678648651,-460.0,0.00020273,2]
[372544351,1752678648661,-718.95,0.00020273,2]
[372544352,1752678648671,-460.0,0.00020273,2]
[372544353,1752678648680,-224.3465457,0.00020273,2]
[372544354,1752678648690,-460.0,0.00020273,2]
[372544355,1752678648700,-5356.15,0.00020273,2]
[372544356,1752678648711,-460.0,0.00020273,2]
[372544357,1752678648722,-2292.35,0.00020273,2]
[372544358,1752678648733,-1737.25,0.00020273,2]
[372544359,1752678648743,-460.0,0.00020273,2]
[372544360,1752678648754,-460.0,0.00020273,2]
[372544361,1752678648764,-641.9,0.00020273,2]
[372544362,1752678648774,-460.0,0.00020273,2]
[372544363,1752678648784,-1414.64,0.00020273,2]
[372544364,1752678648794,-460.0,0.00020273,2]
[372544365,1752678648804,-846.66,0.00020273,2]
[372544366,1752678648814,-3615.07,0.00020273,2]
[372544367,1752678648824,-478.86,0.00020273,2]
[372544368,1752678648834,-460.0,0.00020273,2]
[372544369,1752678648844,-506.39,0.00020273,2]
[372544370,1752678648855,-460.0,0.00020273,2]
[372544371,1752678648866,-460.0,0.00020273,2]
[372544372,1752678648876,-912.0,0.00020273,2]
[372544373,1752678648885,-6795.07,0.00020273,2]
[372544374,1752678648896,-1065.94,0.00020273,2]
[372544375,1752678648906,-5003.29,0.00020273,2]
[372544376,1752678648916,-524.52,0.00020273,2]
[372544377,1752678648926,-460.0,0.00020273,2]
[372544378,1752678648937,-289.51054933,0.00020273,2]
[372544379,1752678648947,-460.0,0.00020273,2]
[372544380,1752678648956,-460.0,0.00020273,2]
[372544381,1752678648966,-460.0,0.00020273,2]
[372544382,1752678648980,-460.0,0.00020273,2]
[372544383,1752678648990,-460.0,0.00020273,2]
[372544384,1752678649000,-460.0,0.00020273,2]
[372544385,1752678649010,-460.0,0.00020273,2]
[372544386,1752678649020,-460.0,0.00020273,2]
[372544387,1752678649030,-460.0,0.00020273,2]
[372544388,1752678649040,-677.7,0.00020273,2]
[372544389,1752678649051,-2241.66,0.00020273,2]
[372544390,1752678649061,-460.0,0.00020273,2]
[372544391,1752678649071,-3256.22,0.00020273,2]
[372544392,1752678649082,-460.0,0.00020273,2]
[372544393,1752678649092,-2858.44,0.00020273,2]
[372544394,1752678649102,-2825.25,0.00020273,2]
[372544395,1752678649112,-460.0,0.00020273,2]
[372544396,1752678649123,-460.0,0.00020273,2]
[372544397,1752678649133,-827.57,0.00020273,2]
[372544398,1752678649143,-1898.44,0.00020273,2]
[372544399,1752678649153,-918.75,0.00020273,2]
[372544400,1752678649163,-968.18,0.00020273,2]
[372544401,1752678649173,-460.0,0.00020273,2]
[372544402,1752678649183,-587.96,0.00020273,2]
[372544403,1752678649194,-540.85,0.00020273,2]
[372544404,1752678649203,-460.0,0.00020273,2]
[372544405,1752678649214,-460.0,0.00020273,2]
[372544406,1752678649228,-520.43,0.00020273,2]
[372544407,1752678649238,-4413.79,0.00020273,2]
[372544408,1752678649248,-3845.19834937,0.00020314,3]
[372544409,1752678649258,-3091.77451258,0.00020425,2]
[372544410,1752678649268,-160.0,0.0002045,2]
[372544411,1752678649278,-1000.0,0.00020521,2]
[372544412,1752678649288,-500.0,0.00020521,2]
[372544413,1752678649297,-500.0,0.00020521,2]
[372544414,1752678649313,-344.17840803,0.00020521,2]
[372544415,1752678649323,-260.4535095,0.00020521,2]
[372544416,1752678649333,-3845.19834937,0.00020521,3]
[372544417,1752678649343,-242.837648,0.00020521,2]
[372544418,1752678649354,-242.837648,0.00020521,2]
[372544419,1752678649364,-151.0,0.00020521,2]
[372544420,1752678649374,-151.0,0.00020521,2]
[372544421,1752678649384,-891.32,0.00020526,3]
[372544422,1752678649394,-445.66,0.00020526,3]
[372544423,1752678649405,-215.0738,0.00020535,2]
[372544424,1752678649415,-151.0,0.00020547,2]
[372544425,1752678649425,-151.0,0.00020547,2]
[372544426,1752678649435,-460.0,0.00020547,2]
[372544427,1752678649446,-460.0,0.00020547,2]
[372544428,1752678649460,-460.0,0.00020547,2]
[372544429,1752678649478,-460.0,0.00020547,2]
[372544430,1752678649493,-185.30992788,0.00020547,2]
[372544431,1752678649503,-471.71,0.00020547,2]
[372544432,1752678649514,-508.85,0.00020547,2]
[372544433,1752678649525,-565.48,0.00020547,2]
[372544434,1752678649535,-498.46,0.00020547,2]
[372544435,1752678649546,-460.0,0.00020547,2]
[372544436,1752678649557,-575.56,0.00020547,2]
[372544437,1752678649567,-378.55,0.00020547,2]
[372544438,1752678649577,-736.25,0.00020547,2]
[372544439,1752678649587,-460.0,0.00020547,2]
[372544440,1752678649596,-775.35,0.00020547,2]
[372544441,1752678649606,-460.0,0.00020547,2]
[372544442,1752678649616,-460.0,0.00020547,2]
[372544443,1752678649626,-460.0,0.00020547,2]
[372544444,1752678649635,-460.0,0.00020547,2]
[372544445,1752678649645,-460.0,0.00020547,2]
[372544446,1752678649654,-460.0,0.00020547,2]
[372544447,1752678649664,-460.0,0.00020547,2]
[372544448,1752678649673,-2705.43,0.00020547,2]
[372544449,1752678649683,-460.0,0.00020547,2]
[372544450,1752678649692,-460.0,0.00020547,2]
[372544451,1752678649701,-460.0,0.00020547,2]
[372544452,1752678649711,-1116.34,0.00020547,2]
[372544453,1752678649723,-460.0,0.00020547,2]
[372544454,1752678649732,-460.0,0.00020547,2]
[372544455,1752678649742,-460.0,0.00020547,2]
[372544456,1752678649751,-460.0,0.00020547,2]
[372544457,1752678649761,-718.95,0.00020547,2]
[372544458,1752678649770,-269.12,0.00020547,2]
[372544459,1752678649780,-460.0,0.00020547,2]
[372544460,1752678649790,-5356.15,0.00020547,2]
[372544461,1752678649800,-460.0,0.00020547,2]
[372544462,1752678649810,-2292.35,0.00020547,2]
[372544463,1752678649819,-1737.25,0.00020547,2]
[372544464,1752678649829,-460.0,0.00020547,2]
[372544465,1752678649838,-232.31077923,0.00020547,2]
[372544466,1752678649849,-641.9,0.00020547,2]
[372544467,1752678649858,-460.0,0.00020547,2]
[372544468,1752678649867,-1414.64,0.00020547,2]
[372544469,1752678649877,-460.0,0.00020547,2]
[372544470,1752678649887,-846.66,0.00020547,2]
[372544471,1752678649896,-3615.07,0.00020547,2]
[372544472,1752678649906,-478.86,0.00020547,2]
[372544473,1752678649916,-460.0,0.00020547,2]
[372544474,1752678649932,-506.39,0.00020547,2]
[372544475,1752678649951,-460.0,0.00020547,2]
[372544476,1752678649970,-460.0,0.00020547,2]
[372544477,1752678649982,-912.0,0.00020547,2]
[372544478,1752678649991,-6795.07,0.00020547,2]
[372544479,1752678650003,-1065.94,0.00020547,2]
[372544480,1752678650012,-5003.29,0.00020547,2]
[372544481,1752678650022,-500.0,0.00020547,2]
[372544482,1752678650032,-405.61531205,0.00020547,2]
[372544483,1752678650042,-524.52,0.00020547,2]
[372544484,1752678650052,-335.47953973,0.00020547,2]
[372544485,1752678650062,-460.0,0.00020547,2]
[372544486,1752678650071,-460.0,0.00020547,2]
[372544487,1752678650081,-460.0,0.00020547,2]
[372544488,1752678650090,-460.0,0.00020547,2]
[372544489,1752678650100,-460.0,0.00020547,2]
[372544490,1752678650114,-460.0,0.00020547,2]
[372544491,1752678650123,-460.0,0.00020547,2]
[372544492,1752678650133,-460.0,0.00020547,2]
[372544493,1752678650143,-460.0,0.00020547,2]
[372544494,1752678650152,-677.7,0.00020547,2]
[372544495,1752678650162,-2241.66,0.00020547,2]
[372544496,1752678650171,-460.0,0.00020547,2]
[372544497,1752678650181,-3256.22,0.00020547,2]
[372544498,1752678650190,-460.0,0.00020547,2]
[372544499,1752678650200,-2858.44,0.00020547,2]
[372544500,1752678650210,-2825.25,0.00020547,2]
[372544501,1752678650219,-460.0,0.00020547,2]
[372544502,1752678650231,-460.0,0.00020547,2]
[372544503,1752678650243,-827.57,0.00020547,2]
[372544504,1752678650254,-1898.44,0.00020547,2]
[372544505,1752678650263,-918.75,0.00020547,2]
[372544506,1752678650273,-968.18,0.00020547,2]
[372544507,1752678650283,-460.0,0.00020547,2]
[372544508,1752678650293,-587.96,0.00020547,2]
[372544509,1752678650303,-540.85,0.00020547,2]
[372544510,1752678650317,-460.0,0.00020547,2]
[372544511,1752678650327,-460.0,0.00020547,2]
[372544512,1752678650337,-520.43,0.00020547,2]
[372544513,1752678650347,-4413.79,0.00020547,2]
[372544514,1752678650358,-242.837648,0.00020673,2]
[372544515,1752678650368,-242.837648,0.00020673,2]
[372544516,1752678650379,-151.0,0.00020673,2]
[372544517,1752678650390,-151.0,0.00020673,2]
[372544518,1752678650400,-397.39298171,0.00020721,2]
[372544519,1752678650410,-416.66666667,0.00020728,3]
[372544520,1752678650419,-3845.19834937,0.00020728,3]
[372544521,1752678650428,-420.0,0.00020792,2]
[372544522,1752678650438,-246.46969,0.00020821,2]
[372544523,1752678650448,-151.0,0.00020821,2]
[372544524,1752678650457,-460.0,0.00020821,2]
[372544525,1752678650467,-460.0,0.00020821,2]
[372544526,1752678650479,-460.0,0.00020821,2]
[372544527,1752678650488,-460.0,0.00020821,2]
[372544528,1752678650497,-471.71,0.00020821,2]
[372544529,1752678650507,-508.85,0.00020821,2]
[372544530,1752678650516,-565.48,0.00020821,2]
[372544531,1752678650526,-498.46,0.00020821,2]
[372544532,1752678650535,-460.0,0.00020821,2]
[372544533,1752678650545,-575.56,0.00020821,2]
[372544534,1752678650555,-736.25,0.00020821,2]
[372544535,1752678650564,-460.0,0.00020821,2]
[372544536,1752678650574,-775.35,0.00020821,2]
[372544537,1752678650583,-460.0,0.00020821,2]
[372544538,1752678650593,-460.0,0.00020821,2]
[372544539,1752678650603,-460.0,0.00020821,2]
[372544540,1752678650612,-460.0,0.00020821,2]
[372544541,1752678650621,-460.0,0.00020821,2]
[372544542,1752678650632,-460.0,0.00020821,2]
[372544543,1752678650641,-460.0,0.00020821,2]
[372544544,1752678650651,-2705.43,0.00020821,2]
[372544545,1752678650661,-460.0,0.00020821,2]
[372544546,1752678650671,-460.0,0.00020821,2]
[372544547,1752678650681,-460.0,0.00020821,2]
[372544548,1752678650691,-1116.34,0.00020821,2]
[372544549,1752678650701,-460.0,0.00020821,2]
[372544550,1752678650711,-460.0,0.00020821,2]
[372544551,1752678650721,-460.0,0.00020821,2]
[372544552,1752678650730,-460.0,0.00020821,2]
[372544553,1752678650740,-718.95,0.00020821,2]
[372544554,1752678650750,-460.0,0.00020821,2]
[372544555,1752678650759,-5356.15,0.00020821,2]
[372544556,1752678650769,-460.0,0.00020821,2]
[372544557,1752678650778,-2292.35,0.00020821,2]
[372544558,1752678650788,-1737.25,0.00020821,2]